bitfinex-derivatives/quotes_ETHF0:USTF0_20250411
["timestamp","ask_amount","ask_price","bid_price","bid_amount"]
[1744403406508,3.79285,1572.4,1572.3,4.8371]
[1744403406901,3.79285,1572.4,1572.3,3.2078]
[1744403408113,2.14905,1572.4,1572.3,4.9616]
[1744403408426,2.14905,1572.4,1572.3,3.2078]
[1744403408920,3.86345,1572.4,1572.3,3.2078]
[1744403409113,2.14905,1572.4,1572.3,3.2078]
[1744403409315,0.0168,1572.4,1572.3,4.48043]
[1744403409515,0.0168,1572.4,1572.3,11.98267013]
[1744403409715,1.28935,1572.4,1572.3,5.71004013]
[1744403409925,1.28935,1572.4,1572.3,4.9616]
[1744403411422,0.0168,1572.4,1572.3,6.23423]
[1744403411624,0.0168,1572.4,1572.3,7.07203831]
[1744403412731,0.0168,1572.4,1572.3,12.07203831]
[1744403413831,0.0168,1572.4,1572.3,12.07143131]
[1744403417232,0.0168,1572.4,1572.3,39.9828848]
[1744403417433,1.27234,1572.7,1572.6,1.27238]
[1744403417632,1.27234,1572.7,1572.6,8.82398401]
[1744403418037,3.78524,1572.8,1572.7,1.2723]
[1744403418239,3.78524,1572.8,1572.7,1.28910401]
[1744403418736,3.78524,1572.8,1572.7,3.02660401]
[1744403420333,3.78524,1572.8,1572.7,0.01680401]
[1744403420838,8.78524,1572.8,1572.7,0.01680401]
[1744403424531,1.27247,1572.5,1572.4,3.2078]
[1744403424736,1.27263,1572.3,1572.2,8.80647]
[1744403424936,1.28943401,1572.3,1572.2,8.80647]
[1744403425136,2.89673401,1572.3,1572.2,8.80647]
[1744403425939,1.62410401,1572.3,1572.2,8.80647]
[1744403426139,0.01680401,1572.3,1572.2,10.49847]
[1744403426332,0.01680401,1572.3,1572.2,11.34227]
[1744403428135,1.28943401,1572.3,1572.2,10.49847]
[1744403428342,2.93623401,1572.3,1572.2,10.49847]
[1744403437649,0.01680401,1572.3,1572.2,10.49847]
[1744403437850,1.28943401,1572.3,1572.2,10.49847]
[1744403440154,3.06353401,1572.3,1572.2,10.49847]
[1744403440854,0.01680401,1572.3,1572.2,10.49847]
[1744403441447,0.01680401,1572.3,1572.2,11.33575463]
[1744403442154,0.01680401,1572.3,1572.2,16.33575463]
[1744403443456,0.01680401,1572.3,1572.2,16.33503611]
[1744403444757,0.01680401,1572.3,1572.2,39.1938353]
[1744403445954,0.01680401,1572.3,1572.2,34.1938353]
[1744403446459,1.28943401,1572.3,1572.2,34.19432782]
[1744403446655,0.01680401,1572.3,1572.2,34.19432782]
[1744403447163,0.01680401,1572.3,1572.2,34.19431143]
[1744403448262,0.01680401,1572.3,1572.2,11.33592175]
[1744403451969,0.01680401,1572.3,1572.2,11.33629437]
[1744403452369,0.01680401,1572.3,1572.2,16.33629437]
[1744403452565,0.8495,1572.6,1572.2,15.06362437]
[1744403452768,1.78216,1572.8,1572.7,1.2723]
[1744403453065,0.00956,1572.8,1572.7,9.65972838]
[1744403453260,0.00956,1572.8,1572.7,11.28682838]
[1744403453665,0.00956,1572.8,1572.7,11.28597773]
[1744403454771,1.28178,1572.8,1572.7,11.28597773]
[1744403455165,1.28178,1572.8,1572.7,8.82190401]
[1744403455668,1.28178,1572.8,1572.7,7.54960401]
[1744403455981,1e-05,1572.8,1572.7,10.33334931]
[1744403456168,1e-05,1572.8,1572.7,11.20904931]
[1744403456471,2.647,1573.2,1573.1,1.27198]
[1744403456472,3.9189,1573.2,1573.1,1.27198]
[1744403456672,2.647,1573.2,1573.1,8.80378]
[1744403456971,3.9189,1573.2,1573.1,8.82058401]
[1744403457176,0.8875,1573.4,1573.1,8.82058401]
[1744403457379,4.75326276,1573.4,1573.3,1.27182]
[1744403457570,4.75326276,1573.4,1573.3,1.28862401]
[1744403457768,9.75326276,1573.4,1573.3,1.28862401]
[1744403458875,4.75326276,1573.4,1573.3,1.28862401]
[1744403459071,4.75326276,1573.4,1573.3,4.49642401]
[1744403459678,3.48146276,1573.4,1573.3,4.49642401]
[1744403459980,0.00946276,1573.4,1573.3,4.49642401]
[1744403460171,39.70687807,1573.7,1573.6,1.27158]
[1744403460474,39.70687807,1573.7,1573.6,4.323]
[1744403460475,2.8934,1573.7,1573.6,4.323]
[1744403460777,2.8934,1573.7,1573.6,7.54760401]
[1744403460977,1.6219,1573.7,1573.6,8.81918401]
[1744403461376,0.8112,1573.8,1573.7,1.2715]
[1744403461582,2.4331,1573.8,1573.7,2.92650401]
[1744403462469,3.70451,1573.8,1573.7,2.92650401]
[1744403462670,2.4331,1573.8,1573.7,2.92650401]
[1744403463179,3.70451,1573.8,1573.7,1.28830401]
[1744403464983,3.70451,1573.8,1573.7,0.01680401]
[1744403465373,3.70451,1573.8,1573.7,1.28830401]
[1744403465573,3.70451,1573.8,1573.7,0.01680401]
[1744403466187,8.70451,1573.8,1573.7,0.01680401]
[1744403467687,3.70451,1573.8,1573.7,1.28830401]
[1744403468080,3.70451,1573.8,1573.7,0.01680401]
[1744403468988,3.70451,1573.8,1573.7,1.28830401]
[1744403470488,2.4331,1573.8,1573.7,1.28830401]
[1744403471089,3.70451,1573.8,1573.7,1.28830401]
[1744403471390,2.4331,1573.8,1573.7,1.28830401]
[1744403471590,2.4331,1573.8,1573.7,3.06550401]
[1744403471891,3.70451,1573.8,1573.7,3.06550401]
[1744403472788,1.27133,1574.0,1573.9,1.27129]
[1744403472988,1.27133,1574.0,1573.9,8.80109]
[1744403473192,1.27133,1574.0,1573.9,8.81789401]
[1744403473490,3.03363,1574.0,1573.9,8.81789401]
[1744403473690,3.03363,1574.0,1573.9,7.54660401]
[1744403476899,3.03363,1574.0,1573.9,4.33880401]
[1744403479000,1.27133,1574.0,1573.9,9.16650401]
[1744403479908,3.04713,1574.0,1573.9,9.16650401]
[1744403481401,3.04713,1574.0,1573.9,7.54660401]
[1744403481598,3.04713,1574.0,1573.9,4.33880401]
[1744403482000,8.04713,1574.0,1573.9,0.01680401]
[1744403482199,3.04713,1574.0,1573.9,0.01680401]
[1744403486306,8.04713,1574.0,1573.9,0.01680401]
[1744403486505,8.04713,1574.0,1573.9,4.01e-06]
[1744403486701,11.25493,1574.0,1573.9,4.01e-06]
[1744403486906,1.27158,1573.6,1573.5,4.327]
[1744403487305,4.68228,1573.6,1573.5,4.327]
[1744403489907,1.27174,1573.4,1573.3,3.2078]
[1744403490099,1.28854,1573.4,1573.3,3.2078]
[1744403490304,1.2719,1573.2,1573.1,7.5443344]
[1744403490708,1.2887,1573.2,1573.1,7.5443344]
[1744403490907,2.1428,1573.2,1573.1,7.5443344]
[1744403491110,3.8716,1573.2,1573.1,7.5443344]
[1744403491908,3.8716,1573.2,1573.1,9.2064344]
[1744403492108,3.8716,1573.2,1573.1,10.4784144]
[1744403492304,2.1428,1573.2,1573.1,10.4784144]
[1744403492498,2.1428,1573.2,1573.1,11.3483144]
[1744403494409,1.2887,1573.2,1573.1,11.3483144]
[1744403496114,1.2887,1573.2,1573.1,12.2355144]
[1744403499702,1.2887,1573.2,1573.1,9.2064344]
[1744403500015,2.9975,1573.2,1573.1,0.0095344]
[1744403500213,4.7433,1573.2,1573.1,0.0095344]
[1744403502414,9.7433,1573.2,1573.1,0.0095344]
[1744403502914,12.9511,1573.2,1573.1,4.4e-06]
[1744403503319,17.2791,1573.2,1573.1,4.4e-06]
[1744403503507,1.27198,1573.1,1573.0,2.7201844]
[1744403503810,1.27222,1572.8,1572.7,7.5358]
[1744403504003,1.28902,1572.8,1572.7,7.5358]
[1744403504809,1.28902,1572.8,1572.7,9.1868]
[1744403505615,2.93572,1572.8,1572.7,9.1868]
[1744403506914,1.28902,1572.8,1572.7,10.4591]
[1744403507117,1.28902,1572.8,1572.7,12.1519]
[1744403508116,1.28902,1572.8,1572.7,10.8796]
[1744403508715,1.28902,1572.8,1572.7,9.1868]
[1744403508915,2.92022,1572.8,1572.7,9.1868]
[1744403509120,1.28902,1572.8,1572.7,9.1868]
[1744403510319,0.0168,1572.8,1572.7,15.4591]
[1744403514219,0.0168,1572.8,1572.7,16.29301597]
[1744403514424,0.0168,1572.8,1572.7,15.4591]
[1744403514609,0.0168,1572.8,1572.7,16.29302551]
[1744403514814,0.0168,1572.8,1572.7,15.4591]
[1744403515012,0.0168,1572.8,1572.7,16.29302187]
[1744403515217,1.28902,1572.8,1572.7,16.76836328]
[1744403515416,1.28902,1572.8,1572.7,10.4591]
[1744403515610,1.28902,1572.8,1572.7,9.1868]
[1744403515813,2.93062,1572.8,1572.7,9.1868]
[1744403518723,2.93062,1572.8,1572.7,10.4591]
[1744403519118,1.28902,1572.8,1572.7,10.4591]
[1744403521527,1.28902,1572.8,1572.7,9.1868]
[1744403522019,1.28902,1572.8,1572.7,10.4591]
[1744403522227,0.0168,1572.8,1572.7,10.4591]
[1744403522727,1.28902,1572.8,1572.7,10.4591]
[1744403524125,2.96912,1572.8,1572.7,9.1868]
[1744403526725,2.96912,1572.8,1572.7,10.4591]
[1744403526920,1.28902,1572.8,1572.7,10.4591]
[1744403530025,0.0168,1572.8,1572.7,16.2943419]
[1744403530324,3.17902,1573.6,1573.4,1.27172]
[1744403530530,1.25491599,1573.5,1573.4,3.2078]
[1744403530739,1.25491599,1573.5,1573.4,4.47954]
[1744403531032,1.25491599,1573.5,1573.4,3.2078]
[1744403531233,1.27174,1573.4,1573.3,3.02196]
[1744403531532,1.27174,1573.4,1573.3,2.16487836]
[1744403532032,1.27182,1573.3,1573.2,10.45467]
[1744403532234,1.28862401,1573.3,1573.2,11.34786664]
[1744403532828,0.01680401,1573.3,1573.2,11.34786664]
[1744403533824,1.28862401,1573.3,1573.2,11.34704288]
[1744403535632,0.01680401,1573.3,1573.2,11.34704288]
[1744403535832,0.01680401,1573.3,1573.2,11.34654592]
[1744403536131,1.28862401,1573.3,1573.2,11.34654592]
[1744403537632,1.28862401,1573.3,1573.2,11.34630266]
[1744403537839,0.01680401,1573.3,1573.2,11.34630266]
[1744403539128,0.01680401,1573.3,1573.2,8.13850266]
[1744403539331,1.28862401,1573.3,1573.2,11.34630266]
[1744403542034,1.28862401,1573.3,1573.2,8.80267]
[1744403542235,3.04552401,1573.3,1573.2,8.80267]
[1744403543330,3.04552401,1573.3,1573.2,10.57237]
[1744403544238,1.77370401,1573.3,1573.2,10.57237]
[1744403545140,3.04552401,1573.3,1573.2,10.57237]
[1744403545638,0.8743,1573.5,1573.4,1.27174]
[1744403545840,1.27157,1573.7,1573.6,1.27153]
[1744403546033,3.78237,1573.7,1573.6,1.28833401]
[1744403546542,3.78237,1573.7,1573.6,3.01103401]
[1744403547245,3.78237,1573.7,1573.6,0.01680401]
[1744403548141,3.78237,1573.7,1573.6,1.28838401]
[1744403548344,0.8711,1573.7,1573.6,3.05718401]
[1744403548542,2.1426,1573.7,1573.6,3.05718401]
[1744403549242,2.59,1573.7,1573.6,6.26498401]
[1744403549946,3.8615,1573.7,1573.6,6.26498401]
[1744403551038,0.8714,1573.8,1573.7,1.2715]
[1744403551240,1.27136,1573.9,1573.8,1.27141]
[1744403551438,1.27136,1573.9,1573.8,8.79921]
[1744403551634,1.27136,1573.9,1573.8,8.81601401]
[1744403551836,1.27136,1573.9,1573.8,7.54460401]
[1744403552143,2.89296,1573.9,1573.8,8.81601401]
[1744403552542,2.89296,1573.9,1573.8,7.54460401]
[1744403554245,2.89296,1573.9,1573.8,8.81601401]
[1744403557539,2.89296,1573.9,1573.8,5.60821401]
[1744403557735,2.89296,1573.9,1573.8,8.81601401]
[1744403559248,3.02219,1574.0,1573.9,1.27133]
[1744403559547,3.02219,1574.0,1573.9,1.28813401]
[1744403559944,3.02219,1574.0,1573.9,0.01680401]
[1744403560948,4.78739,1574.0,1573.9,0.01680401]
[1744403566251,2.13979,1574.0,1573.9,0.01680401]
[1744403566454,4.57779,1574.0,1573.9,0.01680401]
[1744403567146,3.3065,1574.0,1573.9,1.28813401]
[1744403567351,0.8685,1574.0,1573.9,3.92091588]
[1744403567552,0.8685,1574.0,1573.9,4.72261588]
[1744403568350,0.8685,1574.0,1573.9,4.72243343]
[1744403568551,2.13975,1574.0,1573.9,4.72243343]
[1744403570753,1.27125,1574.0,1573.9,4.72243343]
[1744403570953,1.27125,1574.0,1573.9,5.60373343]
[1744403571858,1.27125,1574.0,1573.9,8.81153343]
[1744403572056,1.27125,1574.0,1573.9,8.81180755]
[1744403573259,1.27125,1574.0,1573.9,7.93050755]
[1744403573659,1.27125,1574.0,1573.9,7.12880755]
[1744403573968,1.27125,1574.0,1573.9,5.38980755]
[1744403575167,1.27116,1574.2,1574.1,1.27109]
[1744403575367,1.27116,1574.2,1574.1,5.58809]
[1744403575667,1.27116,1574.2,1574.1,4.33380401]
[1744403575867,1.27116,1574.2,1574.1,7.54160401]
[1744403577268,1.27116,1574.2,1574.1,4.33380401]
[1744403578569,6.27116,1574.2,1574.1,0.01680401]
[1744403587275,9.47896,1574.2,1574.1,0.01680401]
[1744403589073,6.27116,1574.2,1574.1,0.01680401]
[1744403589374,9.47896,1574.2,1574.1,0.01680401]
[1744403589674,4.47896,1574.2,1574.1,0.01680401]
[1744403595575,1.27116,1574.2,1574.1,0.01680401]
[1744403604985,1.27116,1574.2,1574.1,3.22460401]
[1744403606784,1.27116,1574.2,1574.1,9.09969513]
[1744403607285,1.27116,1574.2,1574.1,0.01680401]
[1744403607484,1.27116,1574.2,1574.1,0.89190346]
[1744403607787,1.27116,1574.2,1574.1,0.01680401]
[1744403608489,1.27116,1574.2,1574.1,0.89191796]
[1744403608692,1.27116,1574.2,1574.1,0.01680401]
[1744403608891,1.27116,1574.2,1574.1,0.8918837]
[1744403609391,1.27116,1574.2,1574.1,3.22460401]
[1744403609892,1.27116,1574.2,1574.1,4.49577401]
[1744403610188,1.27116,1574.2,1574.1,5.37070697]
[1744403611187,1.27116,1574.2,1574.1,6.20650697]
[1744403611386,1.27116,1574.2,1574.1,6.20635821]
[1744403612294,1.27116,1574.2,1574.1,7.94305821]
[1744403613189,1.27116,1574.2,1574.1,7.94286508]
[1744403616390,1.27116,1574.2,1574.1,5.83589508]
[1744403616591,3.80166,1574.2,1574.1,7.10706508]
[1744403616792,3.80166,1574.2,1574.1,7.10683334]
[1744403617991,3.80166,1574.2,1574.1,4.09896334]
[1744403618193,3.80166,1574.2,1574.1,0.01680401]
[1744403618593,3.80166,1574.2,1574.1,5.37039322]
[1744403618894,2.13346,1574.2,1574.1,7.14639322]
[1744403619491,3.77966,1574.2,1574.1,7.14639322]
[1744403622196,3.77966,1574.2,1574.1,6.27177401]
[1744403622394,3.77966,1574.2,1574.1,7.14637121]
[1744403622998,3.77966,1574.2,1574.1,5.87520121]
[1744403623698,3.77966,1574.2,1574.1,3.22460401]
[1744403624193,3.77966,1574.2,1574.1,5.37068055]
[1744403624399,3.77966,1574.2,1574.1,7.09898055]
[1744403625799,2.13339,1574.2,1574.1,7.09898055]
[1744403626399,0.8623,1574.2,1574.1,7.09898055]
[1744403626804,2.13339,1574.2,1574.1,7.09898055]
[1744403627099,2.13339,1574.2,1574.1,7.57518111]
[1744403628189,2.13339,1574.2,1574.1,7.09898055]
[1744403628396,2.13339,1574.2,1574.1,7.57531768]
[1744403629501,2.13339,1574.2,1574.1,7.5758896]
[1744403631501,3.80449,1574.2,1574.1,6.30529764]
[1744403631703,3.80449,1574.2,1574.1,4.10037285]
[1744403632097,3.80449,1574.2,1574.1,4.5770513]
[1744403633297,3.80449,1574.2,1574.1,4.55597487]
[1744403633899,3.80449,1574.2,1574.1,5.82714487]
[1744403637005,3.80449,1574.2,1574.1,2.61934487]
[1744403637205,3.80449,1574.2,1574.1,5.82714487]
[1744403637904,3.80449,1574.2,1574.1,4.55597487]
[1744403639006,59.53329513,1574.1,1574.0,10.4052]
[1744403639200,60.33469513,1574.1,1574.0,10.4052]
[1744403639600,61.98969513,1574.1,1574.0,7.1974]
[1744403641209,60.33469513,1574.1,1574.0,7.1974]
[1744403641407,60.33469513,1574.1,1574.0,11.2766]
[1744403641609,60.33469513,1574.1,1574.0,12.1253]
[1744403642101,59.53329513,1574.1,1574.0,12.1253]
[1744403643407,58.26212513,1574.1,1574.0,12.1253]
[1744403643605,28.11245407,1574.1,1574.0,17.1253]
[1744403643804,26.23756019,1574.1,1574.0,17.1253]
[1744403644000,26.23756019,1574.1,1574.0,57.9203]
[1744403644209,26.23756019,1574.1,1574.0,53.6083]
[1744403644412,26.23756019,1574.1,1574.0,57.9203]
[1744403644801,26.23756019,1574.1,1574.0,53.6083]
[1744403645110,26.23756019,1574.1,1574.0,57.9203]
[1744403648315,26.23756019,1574.1,1574.0,90.76417538]
[1744403648906,1.6718,1574.5,1574.4,1.27093]
[1744403649108,0.8621,1574.5,1574.4,5.58293]
[1744403649710,0.8621,1574.5,1574.4,7.27393]
[1744403651109,0.8621,1574.5,1574.4,8.65491097]
[1744403652717,1.7305,1574.5,1574.4,8.17327669]
[1744403653017,1.7305,1574.5,1574.4,8.65476298]
[1744403653512,1.7305,1574.5,1574.4,8.65465536]
[1744403654412,0.8621,1574.5,1574.4,8.65481823]
[1744403654612,0.8621,1574.5,1574.4,9.47691823]
[1744403655118,1.27077,1574.7,1574.6,1.27071]
[1744403655310,4.52187,1574.7,1574.6,6.48095984]
[1744403656112,3.2511,1574.7,1574.6,6.48095984]
[1744403656319,3.2511,1574.7,1574.6,8.09865984]
[1744403656913,1.6267,1574.7,1574.6,8.09865984]
[1744403657115,0.8078,1574.9,1574.8,1.27061]
[1744403657423,2.07833,1574.9,1574.8,5.37765984]
[1744403657636,2.07833,1574.9,1574.8,4.47841]
[1744403657920,2.07833,1574.9,1574.8,3.2078]
[1744403658119,3.68903,1574.9,1574.8,3.2078]
[1744403658917,1.27061,1574.8,1574.7,1.27064]
[1744403659216,3.68811,1574.8,1574.7,2.16924195]
[1744403659914,3.68811,1574.8,1574.7,6.48024195]
[1744403660116,10.59403,1574.8,1574.5,11.13160956]
[1744403660409,3.75049,1574.7,1574.6,4.311]
[1744403660619,3.75049,1574.7,1574.6,5.58177]
[1744403661010,3.75049,1574.7,1574.6,4.311]
[1744403662725,1.27085,1574.5,1574.4,3.2078]
[1744403662926,1.27085,1574.5,1574.4,7.5188]
[1744403663426,3.03935,1574.5,1574.4,8.78973]
[1744403664021,3.03935,1574.5,1574.4,9.66787866]
[1744403667426,3.03935,1574.5,1574.4,11.34920951]
[1744403668127,1.7685,1574.5,1574.4,11.34920951]
[1744403668322,0.82,1574.6,1574.5,1.27085]
[1744403668523,0.82,1574.6,1574.5,3.83032951]
[1744403668722,2.09082,1574.6,1574.5,3.83032951]
[1744403668924,3.85242,1574.6,1574.5,3.83032951]
[1744403669316,0.8691,1574.7,1574.6,1.27077]
[1744403669522,0.8691,1574.7,1574.6,7.54433274]
[1744403669822,2.13979,1574.7,1574.6,7.06217108]
[1744403670331,2.13979,1574.7,1574.6,6.18317]
[1744403670628,3.75439,1574.7,1574.6,6.18317]
[1744403670829,3.75439,1574.7,1574.6,7.06207631]
[1744403672028,3.75439,1574.7,1574.6,7.5440514]
[1744403674135,3.75439,1574.7,1574.6,4.5686814]
[1744403674730,3.75439,1574.7,1574.6,0.87890631]
[1744403675631,1.27077,1574.6,1574.5,1.27084]
[1744403675928,3.87017,1574.6,1574.5,2.15067724]
[1744403676828,3.87017,1574.6,1574.5,0.87983724]
[1744403677032,1.27085,1574.5,1574.4,8.78969]
[1744403677232,3.02375,1574.5,1574.4,10.15219286]
[1744403677928,3.02375,1574.5,1574.4,5.19093344]
[1744403678326,3.02375,1574.5,1574.4,0.87993344]
[1744403679538,3.02375,1574.5,1574.4,2.15086344]
[1744403680132,3.02375,1574.5,1574.4,0.87993344]
[1744403680333,1.27085,1574.5,1574.4,2.15086344]
[1744403680535,2.96615,1574.5,1574.4,2.15086344]
[1744403680736,2.96615,1574.5,1574.4,2.15153731]
[1744403682636,2.96615,1574.5,1574.4,2.15137052]
[1744403683233,2.96615,1574.5,1574.4,0.88044052]
[1744403684440,1.27093,1574.4,1574.3,7.5263344]
[1744403684637,4.77953,1574.4,1574.3,8.40473594]
[1744403684838,4.77953,1574.4,1574.3,7.5263344]
[1744403685041,4.77953,1574.4,1574.3,3.2173344]
[1744403685236,12.98733,1574.4,1574.3,0.0095344]
[1744403690054,7.98733,1574.4,1574.3,0.0095344]
[1744403690551,4.77953,1574.4,1574.3,0.0095344]
[1744403691354,4.77953,1574.4,1574.3,1.7019344]
[1744403695756,4.77953,1574.4,1574.3,0.0095344]
[1744403696054,1.27125,1574.0,1573.9,3.2078]
[1744403696256,1.27125,1574.0,1573.9,9.1215]
[1744403696459,2.97615,1574.0,1573.9,7.18503]
[1744403696955,2.97615,1574.0,1573.9,10.39283]
[1744403697460,2.97615,1574.0,1573.9,9.1215]
[1744403698855,2.97615,1574.0,1573.9,10.39283]
[1744403699757,4.70145,1574.0,1573.9,5.9127]
[1744403700463,2.97615,1574.0,1573.9,10.39183]
[1744403701662,2.97615,1574.0,1573.9,9.1205]
[1744403702464,4.67075,1574.0,1573.9,5.9127]
[1744403702764,1.27133,1573.9,1573.8,0.0095344]
[1744403703064,3.03983,1573.9,1573.8,0.0095344]
[1744403704065,8.03983,1573.9,1573.8,0.0095344]
[1744403705666,3.03983,1573.9,1573.8,0.0095344]
[1744403706166,1.27133,1573.9,1573.8,0.0095344]
[1744403706367,1.27133,1573.9,1573.8,1.7781344]
[1744403706865,1.27133,1573.9,1573.8,2.55879833]
[1744403709963,4.72492,1574.0,1573.8,2.55879833]
[1744403710172,2.14422,1574.0,1573.9,6.11733]
[1744403710364,2.14422,1574.0,1573.9,6.92253]
[1744403710664,1.2807544,1574.1,1574.0,1.27125]
[1744403710864,0.0095344,1574.1,1574.0,7.21845]
[1744403711060,0.0095344,1574.1,1574.0,12.21845]
[1744403711365,0.0095344,1574.1,1574.0,13.8555162]
[1744403712069,0.0095344,1574.1,1574.0,14.33780204]
[1744403712367,1.2807044,1574.1,1574.0,14.33780204]
[1744403712758,1.2807044,1574.1,1574.0,8.8555162]
[1744403715771,1.2807044,1574.1,1574.0,9.33808416]
[1744403716069,1.2807044,1574.1,1574.0,10.21048416]
[1744403716664,1.2807044,1574.1,1574.0,9.7279162]
[1744403718067,1.2807044,1574.1,1574.0,10.21040119]
[1744403718266,1.2807044,1574.1,1574.0,9.72815459]
[1744403718664,1.2807044,1574.1,1574.0,8.85575459]
[1744403718866,2.1672044,1574.1,1574.0,8.85575459]
[1744403720170,3.7996044,1574.1,1574.0,8.85575459]
[1744403720960,3.7996044,1574.1,1574.0,7.58450459]
[1744403721163,3.7996044,1574.1,1574.0,5.94630459]
[1744403721871,3.7996044,1574.1,1574.0,5.08965195]
[1744403722174,3.7996044,1574.1,1574.0,5.94638667]
[1744403722574,3.7996044,1574.1,1574.0,5.08965195]
[1744403722866,3.7996044,1574.1,1574.0,0.78065195]
[1744403723070,1.27133,1573.9,1573.8,4.3185344]
[1744403723466,3.78293,1573.9,1573.8,4.3185344]
[1744403724071,3.78293,1573.9,1573.8,5.0998006]
[1744403725277,3.78293,1573.9,1573.8,0.7908006]
[1744403725770,3.78293,1573.9,1573.8,0.0095344]
[1744403727779,8.78293,1573.9,1573.8,0.0095344]
[1744403730179,8.78293,1573.9,1573.8,4.4e-06]
[1744403732279,13.09093,1573.9,1573.8,4.4e-06]
[1744403737179,8.09093,1573.9,1573.8,4.4e-06]
[1744403737484,3.78293,1573.9,1573.8,4.4e-06]
[1744403737684,2.08923,1573.9,1573.8,4.4e-06]
[1744403737875,2.08923,1573.9,1573.8,1.7118044]
[1744403738978,3.84133,1573.9,1573.8,1.7118044]
[1744403749193,7.04913,1573.9,1573.8,4.4e-06]
[1744403751091,12.04913,1573.9,1573.8,4.4e-06]
[1744403755990,12.04913,1573.9,1573.2,0.8744]
[1744403755991,3.17895,1573.6,1573.2,0.8744]
[1744403756195,3.17885,1573.7,1572.8,17.97169434]
[1744403756196,1.27206,1573.0,1572.8,17.99901434]
[1744403756391,1.28886401,1573.0,1572.9,13.28240956]
[1744403756594,1.28886401,1573.0,1572.9,19.06478676]
[1744403756796,1.28886401,1573.0,1572.9,14.06478676]
[1744403758407,1.28886401,1573.0,1572.9,19.06478676]
[1744403759002,1.28886401,1573.0,1572.9,20.33692676]
[1744403759601,1.28886401,1573.0,1572.9,10.4761172]
[1744403760407,1.28886401,1573.0,1572.9,9.2039772]
[1744403760801,0.01680401,1573.0,1572.9,10.4761172]
[1744403761206,0.01680401,1573.0,1572.9,11.81762801]
[1744403761408,0.01680401,1573.0,1572.9,11.81758727]
[1744403761812,4.4e-06,1573.1,1573.0,1.27206]
[1744403762108,5.984,1574.7,1573.0,1.27206]
[1744403762109,17.27999716,1574.3,1573.9,1.27133]
[1744403762308,7.41373054,1574.0,1573.9,8.80293401]
[1744403762511,1.27125,1574.0,1573.9,9.58531121]
[1744403762910,1.27125,1574.0,1573.9,11.34121121]
[1744403763211,1.27125,1574.0,1573.9,10.06988121]
[1744403763406,1.27125,1574.0,1573.9,6.86208121]
[1744403763711,1.27125,1574.0,1573.9,8.13341121]
[1744403764913,1.27125,1574.0,1573.9,11.34121121]
[1744403765114,1.27125,1574.0,1573.9,10.90238121]
[1744403767515,1.27125,1574.0,1573.9,6.86208121]
[1744403767709,1.27125,1574.0,1573.9,2.55508121]
[1744403767909,2.97195,1574.0,1573.9,1.77270401]
[1744403771312,1.27125,1574.0,1573.9,1.77270401]
[1744403771512,0.0095344,1574.1,1573.9,11.25183401]
[1744403771716,1.2807044,1574.1,1574.0,1.6672]
[1744403771917,1.2807044,1574.1,1574.0,1.68400401]
[1744403772620,1.2807044,1574.1,1574.0,10.99000401]
[1744403772814,1.2807044,1574.1,1574.0,12.26125401]
[1744403773813,1.27102,1574.4,1574.3,1.27097]
[1744403774018,1.27102,1574.4,1574.3,5.57697]
[1744403774218,1.27102,1574.4,1574.3,5.59377401]
[1744403774415,1.27102,1574.4,1574.3,13.17007401]
[1744403774619,1.2708,1574.6,1574.5,1.27077]
[1744403774807,0.8152,1574.9,1574.5,0.79456746]
[1744403775117,1.27063,1574.8,1574.7,1.27061]
[1744403775311,1.27063,1574.8,1574.7,3.94451401]
[1744403775508,1.27063,1574.8,1574.7,8.94451401]
[1744403775714,1.27063,1574.8,1574.7,1.78970401]
[1744403775917,1.27063,1574.8,1574.7,6.09470401]
[1744403776715,1.27061,1574.8,1574.7,12.36535401]
[1744403776919,1.27061,1574.8,1574.7,13.17355401]
[1744403777112,1.27061,1574.8,1574.7,11.90290401]
[1744403777620,1.27061,1574.8,1574.7,6.90290401]
[1744403778022,1.27061,1574.8,1574.7,6.09470401]
[1744403782525,1.27061,1574.8,1574.7,0.01680401]
[1744403782725,2.89001,1574.8,1574.7,0.01680401]
[1744403782920,4.49751,1574.8,1574.7,0.01680401]
[1744403791318,4.49751,1574.8,1574.7,4.01e-06]
[1744403791524,1.27069,1574.7,1574.6,8.41e-06]
[1744403791728,6.13289,1574.7,1574.6,8.41e-06]
[1744403791923,11.13289,1574.7,1574.6,8.41e-06]
[1744403799931,1.27125,1574.0,1573.9,1.6401]
[1744403800431,4.59925,1574.0,1573.9,6.6401]
[1744403800934,4.59925,1574.0,1573.9,1.6401]
[1744403801536,1.27133,1573.9,1573.8,4.3135344]
[1744403801736,2.89393,1573.9,1573.8,5.9492344]
[1744403802543,2.89393,1573.9,1573.8,1.6452344]
[1744403806352,2.89393,1573.9,1573.8,0.0095344]
[1744403806851,1.27133,1573.9,1573.8,0.0095344]
[1744403813450,1.27133,1573.9,1573.8,0.8791344]
[1744403818262,1.27133,1573.9,1573.8,0.0095344]
[1744403824860,2.97773,1573.9,1573.8,0.0095344]
[1744403825052,2.97773,1573.9,1573.8,4.4e-06]
[1744403825258,1.27166,1573.5,1573.4,1.6539]
[1744403825458,1.27174,1573.4,1573.3,4.305]
[1744403825662,3.02684401,1573.4,1573.3,5.087588]
[1744403825966,3.02684401,1573.4,1573.3,0.782588]
[1744403826765,6.23464401,1573.4,1573.3,0.782588]
[1744403826958,1.27182,1573.3,1573.2,0.0095344]
[1744403827156,1.28862401,1573.3,1573.2,0.0095344]
[1744403827359,3.02692401,1573.3,1573.2,0.79181625]
[1744403827559,3.02692401,1573.3,1573.2,6.25e-06]
[1744403827560,3.84182401,1573.3,1573.2,6.25e-06]
[1744403828267,1.27206,1573.0,1572.9,9.86080956]
[1744403828564,1.28886401,1573.0,1572.9,8.34019956]
[1744403828769,1.27214,1572.9,1572.8,11.03298271]
[1744403828970,11.32124,1572.9,1572.8,5.44218271]
[1744403829157,16.33804401,1572.9,1572.8,5.44218271]
[1744403829360,1.27222,1572.8,1572.7,18.38453105]
[1744403829555,3.01042401,1572.8,1572.7,12.18317105]
[1744403829761,8.01042401,1572.8,1572.7,12.18317105]
[1744403830570,8.01042401,1572.8,1572.7,9.77187105]
[1744403830873,1.2723,1572.7,1572.6,0.0095344]